bitfinex/quotes_SOLUSD_20260102
["timestamp","ask_amount","ask_price","bid_price","bid_amount"]
[1767371384681,9.22192144,130.2,130.17,0.72261004]
[1767371385581,9.22192144,130.19,130.17,0.72261004]
[1767371386158,9.22192144,130.19,130.17,8.40482803]
[1767371386353,9.22192144,130.2,130.18,0.72261004]
[1767371386566,9.22192144,130.21,130.18,0.72261004]
[1767371386782,9.22192144,130.2,130.18,0.72261004]
[1767371387160,9.22192144,130.19,130.16,8.40525058]
[1767371387468,9.22192144,130.18,130.16,8.40525058]
[1767371387667,9.22192144,130.18,130.16,0.72261004]
[1767371387980,9.22192144,130.18,130.16,8.40531015]
[1767371388793,9.22192144,130.18,130.15,7.68319853]
[1767371389092,9.22192144,130.18,130.15,8.40580857]
[1767371389261,9.22192144,130.17,130.15,8.40580857]
[1767371389770,9.22192144,130.18,130.16,0.72261004]
[1767371389984,9.22192144,130.18,130.16,8.40541099]
[1767371391775,9.22192144,130.18,130.15,7.6831712]
[1767371391976,9.22192144,130.18,130.15,8.40578124]
[1767371392800,9.22192144,130.18,130.16,7.68283627]
[1767371392981,9.22192144,130.18,130.16,8.40544631]
[1767371393674,9.22192144,130.19,130.16,8.40544631]
[1767371393992,9.22192144,130.2,130.17,0.72261004]
[1767371394164,0.69077159,130.24,130.19,0.72261004]
[1767371394366,9.22192144,130.23,130.19,0.72261004]
[1767371394587,9.91269303,130.23,130.19,0.72261004]
[1767371394779,0.69077159,130.23,130.19,0.72261004]
[1767371394984,9.91269303,130.23,130.19,8.40313815]
[1767371395378,9.91269303,130.24,130.2,0.72261004]
[1767371395866,9.22192144,130.23,130.2,0.72261004]
[1767371396288,0.69077159,130.24,130.2,0.72261004]
[1767371396592,5.68214464,130.23,130.2,0.72261004]
[1767371397086,5.68214464,130.23,130.2,8.40302292]
[1767371397289,6.3735227,130.21,130.18,7.68121005]
[1767371397491,6.3735227,130.23,130.19,8.3579352]
[1767371398077,5.68214464,130.22,130.19,8.3579352]
[1767371398278,6.3735227,130.22,130.19,8.3579352]
[1767371398469,6.3735227,130.22,130.19,7.68091181]
[1767371398663,6.3735227,130.22,130.18,8.35840351]
[1767371398870,5.68214464,130.21,130.18,8.35840351]
[1767371400181,0.69137806,130.24,130.19,0.67702339]
[1767371400493,5.68214464,130.24,130.2,0.67702339]
[1767371400696,6.3735227,130.24,130.2,0.67702339]
[1767371400896,21.69602774,130.28,130.23,0.67702339]
[1767371400897,5.68214464,130.27,130.23,0.67702339]
[1767371401204,0.69137806,130.28,130.24,0.67702339]
[1767371401488,0.69137806,130.31,130.27,5.68214464]
[1767371401690,0.69137806,130.27,130.25,7.67727562]
[1767371401874,5.68214464,130.26,130.24,7.08662742]
[1767371402189,13.3556443,130.32,130.23,7.67849779]
[1767371402190,5.68214464,130.25,130.23,7.67849779]
[1767371402382,5.68214464,130.27,130.24,7.67799983]
[1767371402888,5.68214464,130.25,130.22,7.67906768]
[1767371403089,5.68214464,130.23,130.18,0.67702339]
[1767371403267,5.68214464,130.22,130.19,8.35810488]
[1767371403588,5.68214464,130.21,130.19,0.67702339]
[1767371404096,5.68214464,130.22,130.19,0.67702339]
[1767371404689,5.68214464,130.21,130.19,0.67702339]
[1767371404995,5.68214464,130.23,130.19,0.67702339]
[1767371405302,5.68214464,130.21,130.18,8.35850083]
[1767371405673,5.68214464,130.22,130.19,0.67702339]
[1767371405877,5.68214464,130.24,130.2,0.67702339]
[1767371406201,5.68214464,130.23,130.2,0.67702339]
[1767371406406,5.68214464,130.23,130.16,0.67702339]
[1767371406407,5.68214464,130.21,130.16,0.67702339]
[1767371406707,5.68214464,130.18,130.17,0.67702339]
[1767371407002,14.02,130.25,130.19,0.67702339]
[1767371407386,5.68214464,130.21,130.19,8.35801664]
[1767371407587,27.53754617,130.3,130.2,0.67702339]
[1767371407785,5.68214464,130.24,130.2,0.67702339]
[1767371407975,5.68214464,130.23,130.2,0.67702339]
[1767371408175,40.88315142,130.29,130.2,0.67702339]
[1767371408475,5.15016804,130.28,130.19,8.35809745]
[1767371408680,5.68214464,130.24,130.2,0.67702339]
[1767371409005,26.86315142,130.29,130.22,0.67702339]
[1767371409006,5.68214464,130.26,130.22,0.67702339]
[1767371409381,5.68214464,130.26,130.23,8.35574565]
[1767371409904,5.68214464,130.27,130.23,8.35574565]
[1767371410091,14.02,130.29,130.23,8.35574565]
[1767371410402,5.68214464,130.27,130.23,8.35574565]
[1767371410598,14.02,130.29,130.23,8.35574565]
[1767371410599,5.68214464,130.26,130.23,8.35574565]
[1767371411204,14.02,130.29,130.24,0.67702339]
[1767371411409,7.67423059,130.31,130.23,32.55767255]
[1767371411410,14.02,130.33,130.26,0.67702339]
[1767371411573,5.68214464,130.31,130.27,0.67702339]
[1767371412411,5.68214464,130.29,130.27,0.67702339]
[1767371412906,7.67284872,130.33,130.27,0.67702339]
[1767371413111,7.67250218,130.34,130.27,0.67702339]
[1767371413397,14.02,130.36,130.29,8.35166253]
[1767371413398,5.68214464,130.33,130.29,8.35166253]
[1767371413581,21.69132198,130.36,130.3,0.67702339]
[1767371413783,5.68214464,130.33,130.3,0.67702339]
[1767371414095,7.67132198,130.36,130.28,7.67550916]
[1767371414096,5.68214464,130.31,130.28,7.67550916]
[1767371414576,7.67132198,130.36,130.3,0.67702339]
[1767371415014,5.68214464,130.33,130.3,0.67702339]
[1767371415515,0.1,130.37,130.31,0.67702339]
[1767371415690,0.1,130.37,130.32,0.67702339]
[1767371415691,5.68214464,130.35,130.32,0.67702339]
[1767371416002,5.68214464,130.34,130.3,8.35109849]
[1767371416216,5.68214464,130.33,130.3,8.35109849]
[1767371416381,5.68214464,130.34,130.3,8.35109849]
[1767371416998,5.68214464,130.33,130.3,8.35109849]
[1767371417203,5.68214464,130.32,130.3,0.67702339]
[1767371417405,5.68214464,130.31,130.26,8.35361765]
[1767371417619,7.6729762,130.33,130.27,0.67702339]
[1767371417905,5.68214464,130.31,130.27,0.67702339]
[1767371418216,0.1,130.37,130.28,0.67702339]
[1767371418382,5.68214464,130.34,130.3,0.67702339]
[1767371418985,0.1,130.37,130.31,7.67400813]
[1767371419186,0.1,130.37,130.32,0.67702339]
[1767371419388,5.68214464,130.36,130.32,0.67702339]
[1767371419602,5.78214464,130.37,130.33,0.67702339]
[1767371420826,5.68214464,130.36,130.33,0.67702339]
[1767371421121,5.68214464,130.36,130.33,8.3494908]
[1767371421411,5.68214464,130.35,130.32,7.67321811]
[1767371421610,5.68214464,130.34,130.32,0.67702339]
[1767371421784,5.68214464,130.34,130.32,8.35038364]
[1767371422611,5.68214464,130.35,130.33,8.34985389]
[1767371422837,5.68214464,130.35,130.33,0.67702339]
[1767371423120,5.68214464,130.35,130.32,7.67326584]
[1767371423326,5.68214464,130.35,130.32,8.35028923]
[1767371423532,5.68214464,130.33,130.31,7.67377446]
[1767371423814,5.68214464,130.32,130.3,0.67702339]
[1767371423987,5.68214464,130.31,130.29,0.67702339]
[1767371424189,5.68214464,130.31,130.3,0.67702339]
[1767371424392,5.68214464,130.32,130.31,0.67702339]
[1767371424711,5.68214464,130.32,130.3,8.35157539]
[1767371424908,5.68214464,130.33,130.31,8.35097732]
[1767371425108,5.68214464,130.36,130.32,0.67702339]
[1767371425410,5.68214464,130.36,130.31,13.35609857]
[1767371425411,5.68214464,130.36,130.33,8.34985389]
[1767371426310,5.68214464,130.35,130.33,8.34985389]
[1767371426900,0.1,130.37,130.33,8.34985389]
[1767371427210,5.78214464,130.37,130.33,8.34985389]
[1767371427507,5.78214464,130.37,130.34,0.66263332]
[1767371428611,5.68214464,130.36,130.34,0.66263332]
[1767371429001,0.1,130.37,130.34,0.66263332]
[1767371429209,5.68214464,130.36,130.34,0.66263332]
[1767371429695,0.1,130.37,130.34,0.66263332]
[1767371429894,5.68214464,130.36,130.34,0.66263332]
[1767371430110,0.1,130.37,130.35,0.66263332]
[1767371430706,5.78214464,130.37,130.35,0.66263332]
[1767371430891,5.68214464,130.36,130.32,0.66263332]
[1767371431097,0.1,130.37,130.32,0.66263332]
[1767371431098,5.68214464,130.34,130.32,0.66263332]
[1767371431293,5.68214464,130.33,130.3,0.66263332]
[1767371431509,5.68214464,130.33,130.31,0.66263332]
[1767371431718,5.68214464,130.32,130.3,7.67436615]
[1767371431904,5.68214464,130.32,130.3,8.33699947]
[1767371432218,5.68214464,130.33,130.3,8.33699947]
[1767371432528,5.68214464,130.32,130.3,8.33699947]
[1767371432888,5.68214464,130.31,130.28,0.66263332]
[1767371433092,5.68214464,130.3,130.28,0.66263332]
[1767371433310,26.8487486,130.36,130.28,0.66263332]
[1767371433507,5.68214464,130.31,130.28,0.66263332]
[1767371433702,5.68214464,130.3,130.28,8.33815087]
[1767371433924,26.8487486,130.36,130.28,8.33815087]
[1767371434224,5.68214464,130.29,130.25,7.67717438]
[1767371434510,5.68214464,130.27,130.25,7.67717438]
[1767371434710,14.0,130.34,130.26,0.66263332]
[1767371434914,5.68214464,130.32,130.27,0.66263332]
[1767371435112,5.68214464,130.32,130.28,0.66263332]
[1767371435614,5.68214464,130.32,130.29,8.33781944]
[1767371436013,5.68214464,130.32,130.3,0.66263332]
[1767371436207,5.68214464,130.34,130.31,0.66263332]
[1767371436410,5.68214464,130.36,130.32,0.66263332]
[1767371436602,5.68214464,130.35,130.32,0.66263332]
[1767371436910,5.68214464,130.36,130.32,0.66263332]
[1767371437513,5.68214464,130.36,130.33,7.6728305]
[1767371437910,76.44762298,130.81,130.33,7.6728305]
[1767371437911,0.67590847,130.51,130.43,0.66263332]
[1767371438110,5.68214464,130.48,130.46,3.9725843]
[1767371438306,4.00105775,130.48,130.46,3.9725843]
[1767371438500,14.0,130.47,130.46,3.9725843]
[1767371438895,0.1,130.49,130.46,9.65472894]
[1767371439111,0.1,130.49,130.48,5.68214464]
[1767371439302,1e-08,130.49,130.46,4.63521762]
[1767371439507,20.35805311,130.51,130.47,13.34674186]
[1767371440008,14.67590847,130.51,130.47,13.34674186]
[1767371440200,14.67590847,130.51,130.47,7.66459722]
[1767371440402,5.68214464,130.5,130.47,7.66459722]
[1767371440612,6.35805311,130.5,130.47,7.66459722]
[1767371442103,19.68214464,130.51,130.47,26.82609028]
[1767371442703,14.0,130.51,130.47,26.82609028]
[1767371443103,19.68214464,130.51,130.47,26.82609028]
[1767371443424,14.0,130.51,130.48,5.68214464]
[1767371443619,14.0,130.51,130.49,7.66342248]
[1767371443921,5.68214464,130.5,130.48,7.66379898]
[1767371444112,14.0,130.49,130.48,7.66379898]
[1767371444804,14.0,130.49,130.47,7.66459722]
[1767371445199,0.66640979,130.48,130.45,7.66556877]
[1767371445404,5.68214464,130.47,130.44,7.66614669]
[1767371445721,14.0,130.46,130.44,0.66263332]
[1767371445910,19.68214464,130.48,130.45,7.6653444]
[1767371447024,14.0,130.48,130.44,7.66620156]
[1767371447322,5.68214464,130.46,130.44,7.66620156]
[1767371447707,14.0,130.46,130.44,7.66620156]
[1767371448321,14.0,130.46,130.43,7.66672975]
[1767371448505,19.68214464,130.46,130.43,7.66672975]
[1767371448707,5.68214464,130.45,130.42,8.33002279]
[1767371448914,5.68214464,130.46,130.42,8.33002279]
[1767371449223,0.20095032,130.47,130.42,33.18100656]
[1767371449224,14.0,130.45,130.42,33.18100656]
[1767371449412,14.0,130.45,130.42,7.66738947]
[1767371449613,19.68214464,130.45,130.42,7.66738947]
[1767371449813,14.0,130.45,130.42,7.66738947]
[1767371451032,14.0,130.46,130.42,14.01216743]
[1767371451217,0.67590847,130.48,130.43,6.34477796]
[1767371451400,14.0,130.47,130.44,5.68214464]
[1767371451727,14.0,130.47,130.43,6.34477796]
[1767371451943,14.0,130.47,130.44,5.68214464]
[1767371452323,5.68214464,130.49,130.45,5.68214464]
[1767371452506,14.0,130.48,130.45,5.68214464]
[1767371452712,14.0,130.47,130.45,7.66570878]
[1767371453825,14.0,130.47,130.44,7.66614187]
[1767371454023,19.68214464,130.47,130.44,7.66614187]
[1767371454334,14.0,130.47,130.44,13.34828651]
[1767371454933,19.68214464,130.47,130.43,14.01474345]
[1767371455134,14.0,130.52,130.47,0.66590254]
[1767371455429,14.68307757,130.52,130.46,0.66590254]
[1767371455638,14.68307757,130.52,130.47,6.34804718]
[1767371455815,5.68214464,130.51,130.47,14.01244982]
[1767371456010,14.0,130.5,130.48,6.35004707]
[1767371456216,14.0,130.5,130.48,0.66790243]
[1767371456416,14.0,130.5,130.48,6.35004707]
[1767371456716,14.0,130.5,130.47,14.01444971]
[1767371457317,14.65438183,130.49,130.47,13.34654728]
[1767371457529,14.65438183,130.49,130.45,19.16357755]
[1767371457530,5.68214464,130.49,130.45,5.68214464]
[1767371457728,5.68214464,130.49,130.46,7.66514987]
[1767371457935,14.0,130.48,130.46,7.66514987]
[1767371458338,14.0,130.48,130.46,13.34729451]
[1767371458506,14.0,130.48,130.46,8.3330523]
[1767371458711,0.2175126,130.51,130.46,8.3330523]
[1767371459033,23.82650319,130.5,130.46,9.86439248]
[1767371459234,9.41832765,130.49,130.45,7.66565432]
[1767371459530,9.19649005,130.48,130.44,8.3337761]
[1767371459710,0.2218376,130.49,130.44,0.66790243]
[1767371459911,0.2218376,130.49,130.44,17.53074172]
[1767371460116,9.19649005,130.48,130.44,17.53074172]
[1767371460362,0.54573139,130.46,130.42,19.16822854]
[1767371460520,23.27549005,130.45,130.4,9.86439248]
[1767371460728,9.19649005,130.45,130.41,9.86439248]
[1767371461032,23.17649005,130.46,130.42,0.66790243]
[1767371461236,14.079,130.46,130.41,0.66790243]
[1767371461437,9.19649005,130.45,130.41,9.86439248]
[1767371461651,0.54573139,130.5,130.45,0.66790243]
[1767371461813,0.099,130.49,130.45,9.19649005]
[1767371462144,9.29549005,130.5,130.45,0.66790243]
[1767371462349,9.19649005,130.51,130.46,9.86439248]
[1767371462511,9.19649005,130.51,130.46,0.66790243]
[1767371462512,9.19649005,130.5,130.46,0.66790243]
[1767371462711,9.19649005,130.49,130.44,0.66790243]
[1767371462939,9.19649005,130.46,130.42,0.66790243]
[1767371463239,9.19649005,130.47,130.42,9.86439248]
[1767371463539,0.10775727,130.46,130.4,0.66790243]
[1767371463716,9.19649005,130.42,130.38,9.86439248]
[1767371463920,9.19649005,130.43,130.39,9.86439248]
[1767371464241,13.98,130.43,130.41,9.86439248]
[1767371464546,0.54573139,130.46,130.41,0.66790243]
[1767371464547,9.19649005,130.44,130.41,0.66790243]
[1767371464711,9.19649005,130.47,130.43,9.19649005]
[1767371465041,13.98,130.46,130.43,9.19649005]
[1767371465242,23.17649005,130.46,130.42,0.66790243]
[1767371465542,13.98,130.46,130.44,9.19649005]
[1767371465749,0.54573139,130.52,130.45,9.19649005]
[1767371465915,13.98,130.51,130.46,7.66481994]
[1767371466117,0.54573139,130.52,130.48,9.19649005]
[1767371466427,13.98,130.53,130.49,0.66790243]
[1767371466627,0.65438183,130.57,130.52,9.86439248]
[1767371466931,14.63438183,130.57,130.52,0.66790243]
[1767371467129,0.65438183,130.57,130.53,9.19649005]
[1767371467333,13.98,130.56,130.52,0.66790243]
[1767371467531,105.60104731,130.62,130.52,0.66790243]
[1767371467532,0.65438183,130.61,130.52,0.66790243]
[1767371467862,119.58104731,130.62,130.6,9.19649005]
[1767371468050,119.58104731,130.62,130.61,9.19649005]
[1767371468252,0.1,130.64,130.61,9.19649005]
[1767371468253,0.75438183,130.64,130.61,9.19649005]
[1767371468538,106.93488138,130.68,130.63,9.19649005]
[1767371468539,19.12168977,130.68,130.63,9.19649005]
[1767371468717,0.15302847,130.72,130.68,1.90846255]
[1767371468911,108.26871545,130.73,130.68,1.90846255]
[1767371469532,108.26871545,130.73,130.68,11.1049526]
[1767371469735,108.26871545,130.73,130.68,16.90846255]
[1767371469935,17.58115224,130.73,130.69,7.65169485]
[1767371470151,17.58115224,130.73,130.7,15.0]
[1767371470323,18.23553407,130.73,130.68,1.90846255]
[1767371470636,17.58115224,130.73,130.68,1.90846255]
[1767371470841,0.65438183,130.72,130.68,1.90846255]
[1767371471150,17.73418071,130.73,130.68,9.56061114]
[1767371471323,109.60254952,130.79,130.69,0.65438183]
[1767371471523,109.60254952,130.79,130.71,15.0]
[1767371471736,117.24843411,130.79,130.7,15.65438183]
[1767371471953,0.15302847,130.78,130.71,7.65052406]
[1767371472120,0.15302847,130.78,130.73,0.65438183]
[1767371472318,123.58254952,130.79,130.73,0.65438183]
[1767371472739,108.94816769,130.79,130.77,0.65438183]
[1767371473040,13.98,130.8,130.74,15.0]
[1767371473216,13.98,130.8,130.75,9.19649005]
[1767371473414,5.04762698,130.82,130.75,30.0]
[1767371473618,9.19649005,130.78,130.71,22.65052406]
[1767371473819,0.65438183,130.8,130.71,22.65052406]
[1767371473820,14.63438183,130.77,130.71,7.65052406]
[1767371474031,0.65438183,130.76,130.7,7.65110941]
[1767371474239,0.8074103,130.76,130.68,1.90846255]
[1767371474440,9.19649005,130.73,130.68,7.65222673]
[1767371474639,13.98,130.72,130.68,16.84871678]
[1767371474840,13.98,130.75,130.71,9.19649005]
[1767371475044,9.85087188,130.75,130.7,9.19649005]
[1767371475384,0.65438183,130.73,130.68,7.65224289]
[1767371475547,9.19649005,130.71,130.65,30.0]
[1767371475723,0.65438183,130.68,130.63,30.0]
[1767371475929,0.15302847,130.76,130.64,26.79114199]
[1767371475930,0.65438183,130.7,130.64,26.79114199]
[1767371476239,9.85087188,130.68,130.64,7.65458351]
[1767371476546,9.85087188,130.68,130.59,17.17641207]
[1767371476547,9.85087188,130.66,130.6,7.65647556]
[1767371476746,13.98,130.7,130.59,15.0]
[1767371476747,7.65151081,130.7,130.61,15.65438183]
[1767371476919,13.98,130.69,130.63,9.19649005]
[1767371477251,9.19649005,130.68,130.63,8.30943153]
[1767371477420,13.98,130.68,130.63,0.65438183]
[1767371477626,13.98,130.68,130.63,8.30944119]
[1767371477857,0.15302847,130.72,130.67,9.19649005]
[1767371478054,13.98,130.73,130.68,16.84864999]
[1767371478346,9.19649005,130.72,130.68,7.65215994]
[1767371478535,7.80100774,130.76,130.68,16.84864999]
[1767371478856,0.65438183,130.74,130.68,8.30654177]
[1767371479236,13.98,130.73,130.69,9.19649005]
[1767371479551,0.65438183,130.76,130.71,9.19649005]
[1767371479762,13.98,130.75,130.7,0.65438183]
[1767371480051,0.65438183,130.74,130.7,16.84753146]
[1767371480253,9.19649005,130.78,130.73,0.65438183]
[1767371480452,0.8074103,130.79,130.73,9.85087188]
[1767371480646,0.65438183,130.81,130.76,9.19649005]
[1767371480955,23.81087188,130.8,130.73,15.0]
[1767371481137,0.65438183,130.79,130.73,9.85087188]
[1767371481331,0.8074103,130.78,130.7,8.30542324]
[1767371481530,0.65438183,130.78,130.71,0.65438183]
[1767371481732,13.96,130.79,130.72,15.0]
[1767371481965,0.65438183,130.78,130.72,9.19649005]
[1767371482139,9.85087188,130.78,130.73,7.64935362]
[1767371482455,9.85087188,130.78,130.71,15.0]
[1767371482456,9.19649005,130.77,130.71,16.84644824]
[1767371482632,9.19649005,130.77,130.72,9.19649005]
[1767371482832,9.19649005,130.74,130.69,15.0]
[1767371483028,9.19649005,130.75,130.69,24.19649005]
[1767371483254,23.15649005,130.77,130.72,16.8463961]
[1767371483458,13.96,130.77,130.72,16.8463961]
[1767371483755,13.96,130.77,130.69,49.12778761]
[1767371483756,14.61438183,130.77,130.69,49.12778761]
[1767371483938,9.85087188,130.75,130.7,16.84716018]
[1767371484140,9.85087188,130.75,130.7,7.65067013]
[1767371484333,9.19649005,130.74,130.7,16.84716018]
[1767371484639,0.65438183,130.75,130.53,0.66790243]
[1767371484640,0.65438183,130.7,130.53,0.66790243]
[1767371484839,7.64828264,130.75,130.6,9.86439248]
[1767371484840,9.19649005,130.65,130.6,9.86439248]
[1767371485157,0.65438183,130.69,130.62,0.66790243]
[1767371485343,0.65438183,130.68,130.63,9.19649005]
[1767371485545,9.19649005,130.67,130.62,0.66790243]
[1767371485756,0.65438183,130.68,130.62,0.66790243]
[1767371485959,0.65438183,130.67,130.63,16.85169941]
[1767371486251,0.68279965,130.69,130.63,26.79323278]
[1767371486442,13.96,130.7,130.67,9.19649005]
[1767371486640,13.96,130.7,130.64,0.66992823]
[1767371487062,9.8792897,130.71,130.64,0.66992823]
[1767371487249,0.68279965,130.71,130.64,0.66992823]
[1767371487554,0.68279965,130.71,130.68,9.19649005]
[1767371487764,13.96,130.72,130.64,0.66992823]
[1767371487765,0.72067432,130.7,130.64,0.66992823]
[1767371487958,23.87716437,130.72,130.67,9.19649005]
[1767371488158,14.68067432,130.72,130.66,0.71531691]
[1767371488362,14.68067432,130.72,130.68,9.19649005]
[1767371488660,0.72067432,130.73,130.69,9.19649005]
[1767371488854,0.72067432,130.73,130.7,9.19649005]
[1767371489239,0.72067432,130.73,130.69,9.19649005]
[1767371489439,23.15649005,130.76,130.71,9.19649005]
[1767371489640,14.68067432,130.76,130.69,0.71531691]
[1767371489854,0.72067432,130.75,130.7,26.77888293]
[1767371490159,0.72067432,130.79,130.74,9.19649005]
[1767371490387,19.16065545,130.82,130.7,35.84433821]
[1767371490388,0.72067432,130.77,130.7,35.84433821]
[1767371490656,0.72067432,130.77,130.72,9.19649005]
[1767371490864,9.91716437,130.77,130.72,9.19649005]
[1767371491050,0.72067432,130.76,130.72,9.19649005]
[1767371491363,13.96,130.79,130.73,0.71531691]
[1767371491561,13.96,130.79,130.75,0.71531691]
[1767371491767,13.96,130.79,130.76,0.71531691]
[1767371491944,13.96,130.79,130.74,29.03327346]
[1767371492139,13.96,130.79,130.71,30.7650524]
[1767371492140,13.96,130.79,130.77,9.19649005]
[1767371492342,5.04762698,130.82,130.76,16.84400424]
[1767371492541,9.19649005,130.79,130.73,27.47301062]
[1767371492759,9.19649005,130.76,130.7,0.71531691]
[1767371493055,23.15649005,130.76,130.71,7.65045744]
[1767371493241,9.19649005,130.76,130.71,8.36577435]
[1767371493558,9.19649005,130.76,130.71,27.4920845]
[1767371493957,9.19649005,130.76,130.71,8.36577435]
[1767371494174,9.19649005,130.73,130.71,0.71531691]
[1767371494377,0.15302847,130.76,130.69,0.71531691]
[1767371494378,9.19649005,130.72,130.69,0.71531691]
[1767371494672,9.19649005,130.71,130.69,0.71531691]
[1767371494872,9.19649005,130.71,130.68,0.71531691]
[1767371495183,45.85065681,130.81,130.7,7.65110941]
[1767371495416,0.1,130.88,130.78,23.35013837]
[1767371495417,65.94374953,130.85,130.78,23.35013837]
[1767371495559,112.27021765,130.9,130.84,9.19649005]
[1767371495866,72.51560621,130.9,130.88,16.83654472]
[1767371496058,127.56405172,130.96,130.89,9.19649005]
[1767371496251,122.80054177,130.96,130.89,0.71531691]
[1767371496452,122.80054177,130.96,130.91,9.19649005]
[1767371496651,68.92142232,130.96,130.89,0.71531691]
[1767371496851,1.5,131.0,130.94,9.19649005]
[1767371497054,106.0378858,131.02,130.95,0.71531691]
[1767371497255,140.07211493,131.13,130.95,0.71531691]
[1767371497256,140.07211493,131.13,131.05,8.35013837]
[1767371497586,0.72067432,131.24,131.14,33.42184373]
[1767371497874,120.27322207,131.25,131.23,9.19649005]
[1767371498076,121.60705614,131.31,131.24,9.19649005]
[1767371498296,72.66702494,131.31,131.21,30.0]
[1767371498468,0.72067432,131.33,131.24,21.21108843]
[1767371498654,0.72067432,131.35,131.31,9.19649005]
[1767371498855,0.72067432,131.33,131.22,17.54662842]
[1767371499077,9.91716437,131.32,131.2,30.0]
[1767371499276,3.97576027,131.35,131.21,0.71531691]
[1767371499277,13.96,131.34,131.21,0.71531691]
[1767371499456,3.97576027,131.35,131.18,0.71531691]
[1767371499660,9.19649005,131.28,131.21,9.19649005]
[1767371499857,9.19649005,131.28,131.18,0.71531691]
[1767371499858,23.15649005,131.27,131.2,9.19649005]
[1767371500072,9.19649005,131.29,131.23,9.19649005]
[1767371500380,13.94,131.3,131.22,0.71531691]
[1767371500672,9.8162862,131.27,131.22,0.71531691]
[1767371500874,3.97576027,131.35,131.25,9.8162862]
[1767371501076,3.97576027,131.35,131.21,0.71531691]
[1767371501077,9.8162862,131.26,131.21,0.71531691]
[1767371501280,23.7562862,131.26,131.21,0.71531691]
[1767371501572,3.97657369,131.34,131.26,0.71531691]
[1767371501782,9.8162862,131.33,131.27,9.8162862]
[1767371501954,0.72067432,131.34,131.22,15.0]
[1767371501955,17.915916,131.35,131.22,0.71531691]
[1767371502151,13.94,131.34,131.28,10.53160311]
[1767371502355,122.94089021,131.36,131.31,0.71531691]
[1767371502575,136.88089021,131.36,131.29,15.71531691]
[1767371502771,13.94,131.35,131.29,0.71531691]
[1767371502977,13.94,131.34,131.29,0.71531691]
[1767371503170,13.94,131.34,131.26,0.71531691]
[1767371503373,13.94,131.33,131.29,9.8162862]
[1767371503585,9.8162862,131.3,131.21,8.33662329]
[1767371503771,9.8162862,131.3,131.19,34.05527206]
[1767371503772,13.94,131.29,131.22,8.33596406]
[1767371504080,9.8162862,131.3,131.24,10.53160311]
[1767371504380,8.33509424,131.33,131.24,10.53160311]
[1767371504575,9.8162862,131.29,131.22,8.33595914]
[1767371504774,0.72067432,131.27,131.21,7.62126111]
[1767371504963,13.94,131.26,131.21,7.62126111]
[1767371505158,13.92,131.26,131.22,7.6205092]
[1767371505363,13.19829395,131.26,131.22,7.6205092]
[1767371505578,13.19829395,131.26,131.19,15.0]
[1767371505775,13.19829395,131.26,131.17,30.0]
[1767371505969,13.92,131.28,131.18,7.62311327]
[1767371506157,13.92,131.28,131.21,15.0]
[1767371506365,13.92,131.32,131.25,30.0]
[1767371506689,13.92,131.32,131.24,15.0]
[1767371506992,13.92,131.31,131.24,30.0]
[1767371507190,13.92,131.31,131.24,15.0]
[1767371507382,9.8162862,131.28,131.2,19.0543224]
[1767371507686,23.7362862,131.27,131.21,9.8162862]
[1767371507887,13.92,131.26,131.2,15.0]
[1767371508091,0.72067432,131.3,131.22,15.0]
[1767371508387,0.72067432,131.3,131.23,9.8162862]
[1767371508574,13.92,131.29,131.24,9.8162862]
[1767371508772,13.92,131.28,131.25,9.8162862]
[1767371508976,13.92,131.28,131.22,30.0]
[1767371509185,13.92,131.28,131.22,9.8162862]
[1767371509389,13.92,131.28,131.24,9.8162862]
[1767371509587,0.72067432,131.29,131.16,44.39731762]
[1767371509588,0.72067432,131.29,131.19,7.62209772]
[1767371509789,7.61649563,131.3,131.19,7.62209772]
[1767371509790,10.53696052,131.25,131.19,9.8162862]
[1767371510104,0.72067432,131.23,131.15,22.62483915]
[1767371510313,0.72067432,131.23,131.18,9.8162862]
[1767371510481,13.92,131.22,131.15,57.44946743]
[1767371510676,19.0436176,131.28,131.15,57.44946743]
[1767371510677,13.92,131.21,131.2,9.8162862]
[1767371510911,13.92,131.26,131.21,15.0]
[1767371511081,0.72067432,131.28,131.24,9.8162862]
[1767371511280,0.72067432,131.3,131.21,30.76213703]
[1767371511577,0.72067432,131.3,131.19,8.35013837]
[1767371511578,9.8162862,131.3,131.25,9.8162862]
[1767371511785,13.92,131.29,131.27,9.8162862]
[1767371511984,13.92,131.29,131.26,7.61841235]
[1767371512195,0.72067432,131.34,131.25,15.0]
[1767371512510,13.92,131.33,131.28,7.61706228]
[1767371512891,13.92,131.33,131.27,7.61783667]
[1767371513203,13.92,131.33,131.24,9.8162862]
[1767371513204,9.8162862,131.29,131.24,9.8162862]
[1767371513401,13.92,131.28,131.24,9.8162862]